[Event "44th Chess Olympiad Women 2022"]
[Site "Chennai"]
[Date "2022.08.05"]
[Round "7.30"]
[White "Machlik, Edit"]
[Black "Oviedo Acosta, Paula"]
[Result "1-0"]
[ECO "E76"]
[WhiteElo "2084"]
[BlackElo "1855"]
[Annotator "TA"]
[PlyCount "131"]
[EventDate "2022.07.29"]
[EventType "team-tourn"]
[EventCountry "IND"]
[SourceTitle "playchess.com"]
[Source "ChessBase"]
[SourceQuality "1"]
[WhiteTeam "Norway"]
[BlackTeam "Paraguay"]
[WhiteTeamCountry "NOR"]
[BlackTeamCountry "PAR"]
[TimeControl "40/5400+30:1800+30"]

{[%evp 19,131,0,0,0,29,0,145,146,163,156,185,177,215,208,224,195,241,222,595,591,602,597,588,586,582,565,650,168,193,174,196,87,97,0,0,0,0,0,14,14,14,0,0,0,40,40,40,40,45,45,44,14,14,14,45,45,45,45,45,14,33,35,708,45,45,45,66,45,45,45,81,81,1793,1779,1276,1608,12810,7232,29972,29973,29974,29975,29974,29976,29976,29977,29977,29978,29978,29979,29979,29980,29980,29981,29980,29982,29982,29982,29982,29983,29983,29984,29984,29985,29985,29986,29986,29987,29987,29988,29988,29989,29992,29993]} 1. d4 {[%emt 0:00:03]} Nf6 {[%emt 0:00:12]} 2. c4 {[%emt 0:00:05]} c5 {[%emt 0:00:35]} 3. d5 {[%emt 0:00:05]} g6 {[%emt 0:00:11]} 4. Nc3 {[%emt 0:01:05]} Bg7 {[%emt 0:00:29]} 5. e4 {[%emt 0:05:31]} d6 {[%emt 0:00:53]} 6. f4 {[%emt 0:01:14]} O-O {[%emt 0:01:41]} 7. Nf3 {[%emt 0:00:08]} e6 {[%emt 0:00:25]} 8. dxe6 {[%emt 0:00:33]} fxe6 {[%emt 0:00:20]} 9. Bd3 {[%emt 0:00:07]} Nc6 {[%emt 0:01:42]} 10. O-O {[%emt 0:00:12]} Nd4 {[%emt 0:00:08]} 11. Bd2 {[%emt 0:00:41] [#] E76: King's Indian: Four Pawns Attack: Lines specific to 6 Nf3 move-order.} Rb8 $146 {[%emt 0:14:48]} ({Predecessor:} 11... Bd7 12. Nxd4 cxd4 13. Nb5 Bc6 14. Qe2 Ne8 15. e5 Bxb5 16. cxb5 dxe5 17. fxe5 Nc7 18. Rxf8+ Qxf8 {½-½ (77) Ponomariov,R (2726)-Vovk,Y (2562) Kiev 2012}) 12. Qe1 {[%emt 0:09:57]} b5 {[%emt 0:39:54]} (12... a6 $11) 13. Nxd4 $16 {[%emt 0:08:17] White is clearly better.} (13. cxb5 $6 Nxf3+ 14. Rxf3 (14. gxf3 Nh5 $15) 14... Bb7 $14) (13. Nxb5 Nxf3+ 14. Rxf3 (14. gxf3 Nh5 $17) 14... a6 $11) 13... cxd4 {[%emt 0:00:00]} 14. Nxb5 {[%emt 0:30:33]} e5 {[%emt 0:00:00]} 15. fxe5 {[%emt 0:09:08]} dxe5 {[%emt 0:00:00]} 16. c5 {[%emt 0:01:55] c6 is the strong threat.} Be6 {[%emt 0:00:00]} 17. b4 {[%emt 0:04:41]} Kh8 {[%emt 0:00:00]} (17... Nh5 {might work better.} 18. Qe2 (18. Nxa7 Qd7 $14) 18... Nf4 19. Bxf4 exf4) 18. a3 $18 {[%emt 0:03:49]} ({Stronger than} 18. Nxa7 Qd7 $11) 18... Nxe4 $2 {[%emt 0:01:18]} (18... Nh5 {is tougher.} 19. Rc1 (19. Nxa7 Qd7 $16) 19... Qe7) 19. Rxf8+ {[%emt 0:07:23]} ({Weaker is} 19. Bxe4 Rxb5 20. Rxf8+ Qxf8 $16) 19... Qxf8 {[%emt 0:00:59]} 20. Qxe4 {[%emt 0:01:30]} Bf5 {[%emt 0:00:40]} 21. Qf3 {[%emt 0:02:29]} e4 {[%emt 0:01:20] [#]} 22. Bxe4 {[%emt 0:00:27]} Bxe4 {[%emt 0:04:49]} (22... Rxb5 23. Rf1) 23. Qxf8+ {[%emt 0:03:22]} (23. Qxe4 Rxb5 24. Rf1) 23... Rxf8 {[%emt 0:01:22]} 24. Re1 {[%emt 0:01:49]} ({And not} 24. Nxa7 d3 25. Re1 Bd4+ 26. Re3 Bd5 $19) 24... Bd5 {[%emt 0:04:10]} 25. Nd6 {[%emt 0:01:01]} (25. Nxa7 $18 {is more deadly. Black must now prevent c6.} Kg8 26. Nb5) 25... d3 {[%emt 0:03:14]} 26. Re8 {[%emt 0:00:40]} (26. b5 $16) 26... Bd4+ $11 {[%emt 0:00:09] A strong pair of Bishops.} 27. Kh1 $1 {[%emt 0:00:56]} Rxe8 {[%emt 0:01:44]} 28. Nxe8 {[%emt 0:00:01][%mdl 4096] Endgame KBB-KBN} Be5 {[%emt 0:06:07]} 29. Kg1 {[%emt 0:02:03]} Kg8 {[%emt 0:00:46]} 30. Kf2 {[%emt 0:03:38]} Kf7 {[%emt 0:01:17]} 31. Nd6+ {[%emt 0:00:07]} Bxd6 {[%emt 0:00:06]} 32. cxd6 {[%emt 0:00:02] KB-KB} Ke6 {[%emt 0:01:09]} 33. Bf4 {[%emt 0:00:26]} Bc6 {[%emt 0:01:21]} 34. Ke3 {[%emt 0:02:06]} Bb5 {[%emt 0:01:31]} 35. g4 {[%emt 0:00:56]} Kd5 {[%emt 0:00:48]} 36. Kd2 {[%emt 0:00:44]} Ke4 {[%emt 0:00:25]} 37. Be3 {[%emt 0:00:32]} a6 {[%emt 0:00:26]} 38. g5 {[%emt 0:00:35]} Kd5 {[%emt 0:01:28]} 39. Bf4 {[%emt 0:00:24][%cal Od6d7]} (39. d7 $5 Bxd7 40. Kxd3 $14) 39... Ke4 {[%emt 0:00:23]} 40. Bg3 {[%emt 0:00:24]} Kf3 $2 {[%emt 0:00:39][%mdl 8192] [#]} (40... Kd4 $14) 41. Be1 $2 {[%emt 0:11:40]} (41. a4 $1 $18 {[%cal Ra4b5]} Bxa4 42. Kxd3) 41... Kg4 {[%emt 0:02:38]} 42. h4 {[%emt 0:00:11]} Kf3 {[%emt 0:00:05]} 43. d7 {[%emt 0:11:49]} (43. a4 $5 Bxa4 44. Kxd3 Bb5+ 45. Kd4 $14) 43... Bxd7 {[%emt 0:00:13]} 44. Kxd3 {[%emt 0:00:04]} Kg4 {[%emt 0:05:49]} 45. Kd4 {[%emt 0:03:14] Threatens to win with Kc5. Black is on the road to losing.} Kh5 $2 {[%emt 0:00:32][%mdl 8192]} (45... Bb5 $16) 46. Kc5 $18 {[%emt 0:03:26]} Bb5 {[%emt 0:03:11]} 47. Kb6 {[%emt 0:00:25]} h6 {[%emt 0:00:21]} 48. Bd2 {[%emt 0:01:44]} hxg5 {[%emt 0:00:09]} 49. Bxg5 {[%emt 0:00:50] White mates.} Be2 {[%emt 0:07:45]} 50. a4 {[%emt 0:00:09][%cal Ba3a4,Ba4b5][%mdl 32]} Kg4 {[%emt 0:00:05]} 51. b5 {[%emt 0:00:12]} axb5 {[%emt 0:01:00]} 52. axb5 {[%emt 0:00:09]} Kf5 {[%emt 0:00:14]} 53. Kc6 {[%emt 0:00:21]} Ke6 {[%emt 0:02:12]} 54. b6 {[%emt 0:00:28]} Bf3+ {[%emt 0:00:07]} 55. Kc7 {[%emt 0:00:06]} Ba8 {[%emt 0:00:10]} 56. b7 {[%emt 0:00:12]} Bxb7 {[%emt 0:00:05]} 57. Kxb7 {[%emt 0:00:02] KB-KP} Kd7 {[%emt 0:00:08]} 58. Bf4 {[%emt 0:00:09]} Ke6 {[%emt 0:00:13]} 59. Kc6 {[%emt 0:00:06]} Kf5 {[%emt 0:00:48]} 60. Bg5 {[%emt 0:00:07]} Ke6 {[%emt 0:00:00]} 61. Kc7 {[%emt 0:00:19]} Kf7 {[%emt 0:01:00]} 62. Kd7 {[%emt 0:00:04]} Kf8 {[%emt 0:00:05]} 63. Ke6 {[%emt 0:00:08]} Kg7 {[%emt 0:00:04]} 64. Ke7 {[%emt 0:00:07]} Kg8 {[%emt 0:00:09]} 65. Kf6 {[%emt 0:00:07]} Kh7 {[%emt 0:00:08]} 66. Kf7 {[%emt 0:00:06] Weighted Error Value: White=0.41/Black=0.31} 1-0

[Event "44th Chess Olympiad Women 2022"]
[Site "Chennai"]
[Date "2022.08.05"]
[Round "7.30"]
[White "Rodsmoen, Maud"]
[Black "Montiel Caceres, Helen"]
[Result "1-0"]
[ECO "B49"]
[WhiteElo "1975"]
[BlackElo "1763"]
[Annotator "TA"]
[PlyCount "89"]
[EventDate "2022.07.29"]
[EventType "team-tourn"]
[EventCountry "IND"]
[SourceTitle "playchess.com"]
[Source "ChessBase"]
[SourceQuality "1"]
[WhiteTeam "Norway"]
[BlackTeam "Paraguay"]
[WhiteTeamCountry "NOR"]
[BlackTeamCountry "PAR"]
[TimeControl "40/5400+30:1800+30"]

{[%evp 23,89,0,43,29,21,-6,63,46,44,33,116,57,99,28,140,138,132,9,7,-33,-41,-50,-50,-50,-13,-16,0,0,17,22,80,72,86,47,110,104,149,142,202,202,201,188,257,253,258,200,262,0,250,240,239,233,234,227,291,229,229,221,1755,1742,1614,1549,1976,1975,1866,1820,1623,1691]} 1. e4 {[%emt 0:00:02] Giese} c5 {[%emt 0:00:07]} 2. Nf3 {[%emt 0:00:04]} e6 {[%emt 0:00:06]} 3. d4 {[%emt 0:00:04]} cxd4 {[%emt 0:00:05]} 4. Nxd4 {[%emt 0:00:03]} Nc6 {[%emt 0:00:08]} 5. Nc3 {[%emt 0:00:20]} Qc7 {[%emt 0:00:05]} 6. Be3 {[%emt 0:00:41]} a6 {[%emt 0:00:06]} 7. Be2 {[%emt 0:00:29]} Nf6 {[%emt 0:00:06]} 8. O-O {[%emt 0:00:27]} Bb4 {[%emt 0:00:15]} 9. Na4 {[%emt 0:01:25]} O-O {[%emt 0:01:33]} 10. Nxc6 {[%emt 0:03:19]} bxc6 {[%emt 0:00:07]} 11. Nb6 {[%emt 0:07:10] 11.f4 is not played anymore.} Rb8 {[%emt 0:01:09]} 12. Nxc8 {[%emt 0:00:31]} Qxc8 {[%emt 0:01:38]} 13. e5 {[%emt 0:10:05] B49: Sicilian: Taimanov: 5 Nc3 Qc7 6 Be3 a6 7 Be2.} Nd5 {[%emt 0:04:40][%cal Bf6d5,Bd5e7,Be7g6][%mdl 32]} 14. Bc1 {[%emt 0:04:14] [#]} (14. Ba7 $5 {[%cal Ra7b8]}) 14... c5 $146 {[%emt 0:08:29]} (14... Qc7 $11) ({Predecessor:} 14... Bc5 15. Qd3 Qc7 16. Qe4 f5 17. exf6 Rxf6 18. Bd3 g6 19. Kh1 Bxf2 20. Bg5 Rf5 {½-½ (45) Hansen,S (2490)-Hansen,C (2635) Aars 1995 CBM 050 [Giese]}) 15. c4 {[%emt 0:07:29] White is slightly better.} (15. c3 $5 {[%cal Rc3b4]} Ba5 16. Qa4 $14) 15... Ne7 {[%emt 0:00:09]} 16. Bd3 {[%emt 0:01:58]} Qc7 {[%emt 0:01:57]} ({Black should try} 16... Nc6 $14) 17. Qh5 {[%emt 0:03:20]} (17. Bg5 $1 $16 {[%cal Rg5e7]} Rfe8 18. f4) 17... Ng6 {[%emt 0:00:57]} 18. f4 {[%emt 0:03:41]} ({White should play} 18. Be3 $16) 18... d6 {[%emt 0:11:52]} (18... d5 $11) 19. Rf3 $1 $16 {[%emt 0:11:28]} dxe5 {[%emt 0:00:34]} 20. Rh3 {[%emt 0:07:03]} (20. f5 $1 $16 {Black must now prevent Rh3.} exf5 21. Bxf5) 20... h6 $11 {[%emt 0:00:08]} 21. Bxg6 {[%emt 0:08:31]} (21. f5 {feels hotter.} Nf4 22. Bxf4 exf4 23. fxe6 Rb6 24. exf7+ Qxf7 25. Rd1) 21... fxg6 {[%emt 0:00:07]} 22. Qxe5 {[%emt 0:01:02]} Qxe5 {[%emt 0:00:11]} 23. fxe5 {[%emt 0:00:04]} Rf5 {[%emt 0:00:12]} (23... Rfd8 $5 {[%cal Rd8d1]} 24. Be3 Bd2 $15) 24. Be3 {[%emt 0:03:56]} Ba5 {[%emt 0:02:13]} 25. b3 {[%emt 0:03:36]} Bc3 {[%emt 0:03:30]} 26. Rd1 {[%emt 0:02:42]} Rc8 {[%emt 0:02:48] [#]} (26... Bxe5 $11 {keeps the balance.} 27. Bxc5 (27. g4 Rff8 $11) 27... Bxh2+ $1 28. Kxh2 Rxc5) 27. Bxc5 $1 $16 {[%emt 0:03:09]} Bxe5 {[%emt 0:00:48]} 28. Bb4 {[%emt 0:01:50]} Bb8 {[%emt 0:01:10]} (28... a5 $14 29. Bc3 a4) 29. Rf3 {[%emt 0:04:21]} Ba7+ {[%emt 0:00:51] [#]} 30. Kf1 $1 {[%emt 0:00:26]} Rc6 {[%emt 0:00:41]} (30... Bc5 $16) 31. Bc3 {[%emt 0:00:46]} Bc5 {[%emt 0:03:53]} 32. Rd8+ {[%emt 0:01:57]} Kh7 {[%emt 0:00:15]} (32... Kf7 $142 33. Rd7+ Kf8 34. Rxg7 (34. Bxg7+ Ke8 $16) 34... Bb4) 33. Ke2 $18 {[%emt 0:03:26]} Rc7 {[%emt 0:08:04]} 34. Ra8 {[%emt 0:02:11]} Rc6 {[%emt 0:02:22]} 35. Rd8 {[%emt 0:01:49]} Rc7 $1 {[%emt 0:00:00]} 36. h3 {[%emt 0:00:13]} h5 {[%emt 0:18:22]} 37. Re8 {[%emt 0:01:29]} Rc6 {[%emt 0:05:48]} 38. b4 {[%emt 0:00:51]} Bg1 {[%emt 0:05:46]} 39. c5 {[%emt 0:01:20]} a5 {[%emt 0:02:23]} 40. a3 {[%emt 0:01:25][%cal Ba2a3,Ba3b4][%mdl 32]} ({And not} 40. bxa5 Rfxc5 41. Bd2 Rc2 $11) 40... Rg5 $2 {[%emt 0:03:38]} (40... axb4 41. axb4 Bxc5 42. bxc5 Rfxc5) 41. Rff8 {[%emt 0:04:17][%csl Ge8][%cal Rf8h8] White is clearly winning.} Rxg2+ {[%emt 0:04:58]} 42. Kf1 {[%emt 0:00:28][%csl Ge8][%cal Rf8h8]} Rf2+ {[%emt 0:00:29]} 43. Rxf2 {[%emt 0:00:19]} Bxf2 {[%emt 0:00:03]} 44. Kxf2 {[%emt 0:00:05]} axb4 {[%emt 0:00:04]} 45. axb4 {[%emt 0:00:06] Weighted Error Value: White=0.29 (precise) /Black=0.35} 1-0

[Event "44th Chess Olympiad Women 2022"]
[Site "Chennai"]
[Date "2022.08.05"]
[Round "7.30"]
[White "Perez, Dalila"]
[Black "Stanford, Sheila Barth"]
[Result "0-1"]
[ECO "D90"]
[WhiteElo "1799"]
[BlackElo "2097"]
[Annotator "TA"]
[PlyCount "86"]
[EventDate "2022.07.29"]
[EventType "team-tourn"]
[EventCountry "IND"]
[SourceTitle "playchess.com"]
[Source "ChessBase"]
[SourceQuality "1"]
[WhiteTeam "Paraguay"]
[BlackTeam "Norway"]
[WhiteTeamCountry "PAR"]
[BlackTeamCountry "NOR"]
[TimeControl "40/5400+30:1800+30"]

{[%evp 9,86,-3,-13,-14,0,0,14,10,23,-71,-64,-66,-50,-71,-66,-78,-8,-30,-39,-81,-33,-47,-27,-26,10,0,0,-8,-24,-22,-14,-47,-18,-31,-14,-21,-18,-27,0,-113,-45,-117,-119,-112,-113,-137,-119,-110,-35,-172,-168,-175,-175,-179,-179,-179,-169,-260,-251,-251,-177,-161,-175,-175,-175,-175,-156,-165,-159,-189,-169,-209,-204,-189,-175,-217,-227,-233,-230]} 1. d4 {[%emt 0:00:04]} Nf6 {[%emt 0:00:12]} 2. Nf3 {[%emt 0:00:05]} g6 {[%emt 0:00:18]} 3. c4 {[%emt 0:00:07]} Bg7 {[%emt 0:00:11]} 4. Nc3 {[%emt 0:00:25]} d5 {[%emt 0:00:46]} 5. g3 {[%emt 0:01:46]} dxc4 {[%emt 0:08:27]} 6. Qa4+ {[%emt 0:02:41] D90: Grünfeld: 4 Nf3 Bg7 sidelines.} Nfd7 {[%emt 0:13:47]} 7. Bf4 {[%emt 0:05:39]} O-O {[%emt 0:02:51]} 8. Qxc4 {[%emt 0:06:29] The position is equal.} Nc6 {[%emt 0:30:46]} 9. Nd5 {[%emt 0:14:51]} (9. Rd1 $11 {remains equal.}) 9... Nb6 $17 {[%emt 0:00:18]} 10. Nxb6 {[%emt 0:00:08]} axb6 {[%emt 0:10:38]} 11. Rd1 $1 {[%emt 0:08:11]} Ra5 {[%emt 0:05:41] [#]} 12. a3 $146 {[%emt 0:36:29]} ({Predecessor:} 12. e4 Bg4 13. Be2 Bxf3 14. Bxf3 Nxd4 15. Bg4 e5 16. Bd2 Rc5 17. Qa4 h5 18. Be2 {0-1 (26) Cantrell,G (2074)-Wolff,P (2570) Sioux Falls 2001}) 12... Bf5 (12... Bg4 $17 {...Bxf3 is the strong threat.} 13. Ne5 Be6 14. Nxc6 bxc6) 13. Bg2 {[%emt 0:07:09]} Be4 {[%cal Oc6d4]} 14. Be3 {[%emt 0:00:15]} e6 (14... Qd5 $17 15. Qxd5 Rxd5) 15. O-O $15 {[%emt 0:03:27]} Ne7 16. Bd2 {[%emt 0:00:20]} Ra6 17. Bb4 {[%emt 0:01:12]} Re8 {[%emt 0:02:01][%cal Bf8e8,Be8e7,Be7d7][%mdl 32]} 18. Bxe7 {[%emt 0:01:07]} Rxe7 19. e3 {[%emt 0:01:44]} Rd7 {[%emt 0:06:44]} 20. Rc1 {[%emt 0:02:51]} c6 {[%emt 0:01:53]} (20... c5 $5) 21. Rfe1 {[%emt 0:00:00]} b5 22. Qe2 {[%emt 0:01:22]} Bd5 {[%emt 0:02:32]} 23. Qc2 {[%emt 0:01:27]} f5 {Against e4} 24. Ne5 {[%emt 0:00:26] [#]} (24. h4 $11) 24... Bxe5 (24... Bxg2 $1 $17 25. Kxg2 (25. Nxd7 $2 Be4 $19) 25... Bxe5 26. dxe5 Rd2) 25. dxe5 {[%emt 0:01:38]} (25. Bxd5 $15 Rxd5 26. dxe5) 25... Bxg2 $17 {[%emt 0:05:51]} 26. Kxg2 {[%emt 0:02:10]} Rd2 27. Qc3 {[%emt 0:00:32]} Ra8 {Black is more active.} 28. Kg1 {[%emt 0:00:57]} Qd5 {Prevents Qb3.} (28... Ra4 $17) 29. e4 {[%emt 0:01:56] This costs White the game.} ({Better is} 29. Qb4 $1 $15) 29... fxe4 $19 {[%emt 0:00:28]} 30. Rxe4 {[%emt 0:01:25]} Rxf2 $1 {[%emt 0:00:37]} ({Weaker is} 30... Qxe4 31. Qxd2 Qxe5 32. Re1 $11) 31. Kxf2 {[%emt 0:00:00]} Qxe4 {[%emt 0:00:18][%mdl 4096] Endgame KQR-KQR} 32. Kg1 {[%emt 0:01:41]} Rf8 {[%emt 0:00:59]} 33. Qc5 {[%emt 0:00:00]} (33. Re1 $142 Qd5 34. Re3) 33... Rf3 34. Qb6 {[%emt 0:01:26]} Qe3+ {[%emt 0:00:06]} 35. Qxe3 {[%emt 0:00:00] Black is clearly better.} Rxe3 {[%emt 0:00:25] KR-KR} 36. Rd1 {[%emt 0:00:07]} Rxe5 {[%emt 0:00:27]} 37. Rd8+ {[%emt 0:00:00]} Kf7 {[%emt 0:00:10]} 38. Rd7+ {[%emt 0:01:06]} Kf6 {[%emt 0:00:34]} 39. Rxb7 {[%emt 0:01:12]} Re2 {[%emt 0:00:38]} 40. Rc7 {[%emt 0:01:52]} Rxb2 {[%emt 0:00:00]} 41. Rxc6 {[%emt 0:00:00]} Kf5 42. Rb6 {[%emt 0:00:00]} Rb3 43. Kf2 {[%emt 0:03:24] [#]} e5 $1 {[%emt 0:05:21] Weighted Error Value: White=0.31/Black=0.18 (very precise)} ({Worse is} 43... Rxa3 44. Rxb5+ e5 45. h3 $17) 0-1

[Event "44th Chess Olympiad Women 2022"]
[Site "Chennai"]
[Date "2022.08.05"]
[Round "7.31"]
[White "Norlamo, Sarabella"]
[Black "Onoja, Iyefu Joy"]
[Result "1-0"]
[ECO "D35"]
[WhiteElo "1925"]
[BlackElo "1869"]
[Annotator "TA"]
[PlyCount "123"]
[EventDate "2022.07.29"]
[EventType "team-tourn"]
[EventCountry "IND"]
[SourceTitle "playchess.com"]
[Source "ChessBase"]
[SourceQuality "1"]
[WhiteTeam "Finland"]
[BlackTeam "Nigeria"]
[WhiteTeamCountry "FIN"]
[BlackTeamCountry "NGR"]
[TimeControl "40/5400+30:1800+30"]

{[%evp 13,123,18,114,39,37,4,23,20,30,41,39,27,52,0,26,25,33,35,46,29,36,0,32,27,41,0,20,14,20,22,14,-10,-8,-35,-19,-12,0,-39,0,-29,0,-38,0,0,0,0,13,-68,36,0,35,27,97,79,79,59,65,32,35,0,39,31,28,39,58,54,55,55,54,50,63,70,84,84,83,96,90,94,90,91,87,92,94,-270,114,109,162,161,347,341,461,457,605,613,611,608,600,587,611,620,602,577,559,556,632,556,912,902,1478,1372,1636,1482]} 1. d4 {[%emt 0:00:03]} d5 {[%emt 0:01:04]} 2. c4 {[%emt 0:00:07]} e6 {[%emt 0:00:11]} 3. cxd5 {[%emt 0:00:06]} exd5 {[%emt 0:00:06]} 4. Nc3 {[%emt 0:00:05]} Nf6 {[%emt 0:00:21]} 5. Bg5 {[%emt 0:00:07]} Be7 {[%emt 0:00:42]} 6. e3 {[%emt 0:00:12]} O-O {[%emt 0:01:51]} 7. Bd3 {[%emt 0:00:20]} b6 {[%emt 0:01:55]} (7... c6 $11) 8. Rc1 {[%emt 0:02:36] D35: Queen's Gambit Declined: Exchange Variation.} (8. Bxf6 $16 Bxf6 9. Qh5) 8... Bb7 $14 {[%emt 0:03:35]} 9. Qc2 {[%emt 0:25:22]} Nbd7 {[%emt 0:06:38]} 10. Nge2 {[%emt 0:03:36] White has an edge.} c5 {[%emt 0:12:00]} 11. O-O {[%emt 0:08:21]} h6 {[%emt 0:22:57]} 12. Bf4 {[%emt 0:02:12]} Nh5 {[%emt 0:04:33] [#]} 13. Bg3 $146 {[%emt 0:07:44]} (13. Bh7+ $14 Kh8 14. dxc5) ({Predecessor:} 13. Bf5 Nxf4 14. Nxf4 Nf6 15. dxc5 Bxc5 16. Rfd1 Bd6 17. Qb3 Bxf4 18. exf4 Qd6 19. Rd4 a6 20. Rcd1 Rfd8 21. Bh3 Qc7 22. g3 Rd6 23. Bg2 Rad8 24. h3 R8d7 {½-½ (24) Pancu,A (1881)-Hrib,A (1722) Olanesti 2016}) 13... cxd4 {[%emt 0:04:06]} 14. Nxd4 {[%emt 0:03:17]} Nxg3 {[%emt 0:00:36]} 15. hxg3 {[%emt 0:00:05]} Bc5 {[%emt 0:01:28]} 16. Qa4 {[%emt 0:04:49]} Ne5 {[%emt 0:02:41]} 17. Bb1 {[%emt 0:04:32]} a5 {[%emt 0:02:20]} 18. Rfd1 {[%emt 0:04:39]} Qf6 {[%emt 0:06:16]} 19. Qb3 {[%emt 0:09:36]} Nc4 {[%emt 0:05:23]} 20. Na4 {[%emt 0:08:29]} Rab8 {[%emt 0:06:33]} 21. Qc2 {[%emt 0:02:52][%csl Gb1][%cal Rc2h7]} g6 {[%emt 0:01:03]} 22. Qe2 {[%emt 0:06:25]} Rfe8 {[%emt 0:02:41]} 23. Qc2 {[%emt 0:03:08]} Rec8 {[%emt 0:04:44][%cal Oc4e3] Threatens to win with ...Nxe3!} 24. Qe2 {[%emt 0:00:37]} Re8 {[%emt 0:00:35] White must now prevent ...Bxd4.} 25. Qc2 {[%emt 0:00:11]} Rec8 {[%emt 0:00:08][%cal Oc4e3]} (25... Rbc8 $5 {[%cal Rc4e3]} 26. Qb3 Re7 $11) 26. Nc3 {[%emt 0:01:00]} Rd8 {[%emt 0:01:48]} 27. Ncb5 {[%emt 0:00:54]} Rd7 {[%emt 0:01:37]} 28. Qe2 {[%emt 0:00:54]} Re7 {[%emt 0:01:52]} 29. Bd3 {[%emt 0:00:46]} Ne5 {[%emt 0:01:53]} 30. Bc2 {[%emt 0:00:10]} ({Better is} 30. Qf1 $11) 30... Nc6 {[%emt 0:01:09]} (30... h5 $15) 31. Qg4 {[%emt 0:01:29]} (31. Qf3 $5 {[%cal Rf3f6]} Qxf3 32. Nxf3 $11) 31... Nb4 {[%emt 0:01:48]} 32. Bb1 {[%emt 0:00:37]} Ba6 {[%emt 0:00:34]} (32... Nc6 $11) 33. Nc3 {[%emt 0:00:26] Hoping for a3. Pair of Knights!} Bb7 {[%emt 0:00:39]} 34. a3 {[%emt 0:00:16]} Na6 {[%emt 0:00:22][%cal Bb4a6,Ba6c7,Bc7e6][%mdl 32]} 35. Ncb5 {[%emt 0:01:02]} Nc7 {[%emt 0:01:12]} 36. Nc3 {[%emt 0:00:05]} h5 {[%emt 0:00:17]} 37. Qh4 {[%emt 0:00:47]} Qxh4 {[%emt 0:00:40]} 38. gxh4 {[%emt 0:00:01]} Rd8 {[%emt 0:00:16]} 39. Na4 {[%emt 0:01:03]} Bxd4 {[%emt 0:00:41]} 40. Rxd4 {[%emt 0:00:24]} Ne6 {[%emt 0:00:17]} 41. Rdd1 {[%emt 0:12:12]} Rd6 {[%emt 0:01:36]} 42. Ba2 {[%emt 0:04:31]} Ng7 {[%emt 0:09:48]} 43. Nc3 {[%emt 0:02:48]} Re5 {[%emt 0:06:14]} 44. Nb5 {[%emt 0:01:50]} Rd7 {[%emt 0:00:11]} 45. Rc7 {[%emt 0:02:36]} Ree7 {[%emt 0:03:06]} 46. Rxd7 {[%emt 0:01:23] White is more active.} Rxd7 {[%emt 0:00:07]} 47. Nc3 $36 {[%emt 0:03:56][%mdl 2048] White has strong initiative.} d4 {[%emt 0:02:51]} 48. Na4 $2 {[%emt 0:02:03][%mdl 8192] [#]} ({Of course not} 48. exd4 Nf5 $11) (48. Bb1 $16 {keeps the pressure on.}) 48... Nf5 $2 {[%emt 0:06:54]} (48... dxe3 $1 $19 49. Rc1 (49. Rxd7 $2 {loses.} e2 $19) 49... b5) 49. Nxb6 $16 {[%emt 0:01:16]} Re7 {[%emt 0:02:02]} (49... Rd8 $16 {was necessary.}) 50. exd4 $18 {[%emt 0:01:09]} Nxh4 $2 {[%emt 0:00:35]} (50... Ba6 51. d5 Be2) 51. d5 {[%emt 0:01:12]} Re2 {[%emt 0:02:15]} 52. d6 {[%emt 0:00:49] aiming for d7. White is clearly winning.} Bc6 {[%emt 0:00:36]} 53. d7 {[%emt 0:00:37]} Bxd7 {[%emt 0:00:26]} 54. Rxd7 {[%emt 0:00:33]} Rxb2 {[%emt 0:00:16]} 55. Bxf7+ {[%emt 0:00:09]} Kf8 {[%emt 0:00:29]} 56. Nc4 {[%emt 0:00:27]} Rb5 {[%emt 0:00:56]} 57. Ra7 {[%emt 0:01:13]} Rg5 {[%emt 0:00:33]} 58. g3 {[%emt 0:00:28]} Nf3+ {[%emt 0:00:13]} 59. Kf1 {[%emt 0:00:29]} Nh2+ {[%emt 0:00:24]} 60. Kg2 {[%emt 0:00:23] Strongly threatening Be6.} Ng4 {[%emt 0:00:16]} 61. Be6 {[%emt 0:00:39]} Nf6 {[%emt 0:01:07]} 62. Rf7+ {[%emt 0:00:15] Weighted Error Value: White=0.30/Black=0.38} 1-0